Cogmind - Beta 9.4 @@@ ROGUE MODE // 2020.01.29 @ 20:25:20 Player: sideriver81 Result: Self-destructed Performance ------------- Evolutions (2) 1000 Regions Visited (5) 1000 Robots Destroyed (17) 85 Value Destroyed (487) 487 Prototype IDs (22) 440 Alien Tech Used (0) 0 Bonus (335) 335 TOTAL SCORE: 3347 Bonus ------- Follower Combat Kills 35 Aligned with FarCom 300 Cogmind --------- Core Integrity 176/550 Matter 285/300 Energy 228/240 System Corruption 0% Temperature Cool (0) Movement Hovering (116) Ox1 Location -8/Materials Parts ------- > --- POWER (1) -------- Nuclear Core > --- PROPULSION (4) --- Improved Hover Unit Airjet > --- UTILITY (4) ------ Heat Sink Large Storage Unit Transmission Jammer > --- WEAPON (2) ------- Hammer > --- INVENTORY (10) --- Ion Engine Improved Heat Sink Beam Rifle Field Lobotomy Kit Peak State ------------ > --- POWER ------------ Nuclear Core > --- PROPULSION ------- Airjet Airjet Airjet Airjet > --- UTILITY ---------- Heat Sink Large Storage Unit Transmission Jammer > --- WEAPON ----------- Hammer > --- INVENTORY -------- Ion Engine Improved Hover Unit Improved Heat Sink Beam Rifle Field Lobotomy Kit [Rating: 22] Favorites ----------- Power Light Nuclear Core Engine Ion Engine Power Core Light Nuclear Core Propulsion Aluminum Leg Leg Aluminum Leg Hover Unit Airjet Flight Unit Flight Unit Utility Small Storage Unit Device Heat Sink Storage Small Storage Unit Protection Light Armor Plating Weapon Assault Rifle Energy Gun Small Laser Ballistic Gun Assault Rifle Ballistic Cannon Light Cannon Special Weapon Mining Laser Impact Weapon Hammer Build | -11 -10 -10 -10 -9 -8 ------- Run | Scr Mat Min Exi Min Mat Slots Evolved 4 | . . . . . 4 Power . | . . . . . . Propulsion 2 | . . . . . 2 Utility 2 | . . . . . 2 Weapon . | . . . . . . Parts Attached 30 | . 5 3 . 3 19 Power 4 | . 2 . . . 2 Engine 2 | . 1 . . . 1 Core 2 | . 1 . . . 1 Reactor . | . . . . . . Propulsion 12 | . 1 1 . . 10 Treads . | . . . . . . Leg 4 | . 1 1 . . 2 Wheel . | . . . . . . Hover 5 | . . . . . 5 Flight 3 | . . . . . 3 Utility 6 | . . 2 . 1 3 Device 2 | . . . . . 2 Storage 1 | . . . . . 1 Processor . | . . . . . . Hackware . | . . . . . . Protection 3 | . . 2 . 1 . Artifact . | . . . . . . Weapon 8 | . 2 . . 2 4 Energy Gun 2 | . 1 . . . 1 Energy Cannon . | . . . . . . Ballistic Gun . | . . . . . . Ballistic Cannon 2 | . 1 . . 1 . Launcher . | . . . . . . Special Weapon 2 | . . . . 1 1 Impact Weapon 2 | . . . . . 2 Slashing Weapon . | . . . . . . Piercing Weapon . | . . . . . . Special Melee Weapon . | . . . . . . Unidentified Prototypes . | . . . . . . Parts Lost 14 | . 2 . . . 12 Power 1 | . . . . . 1 Propulsion 6 | . . . . . 6 Utility 1 | . . . . . 1 Weapon 6 | . 2 . . . 4 Highest Loss Streak 9 | . 1 . . . 9 Average Slot Usage (%) 90 | . 84 98 100 100 60 Engine 1 | . 11 . . . 1 Core 10 | . 2 14 14 14 4 Leg 25 | . 28 28 28 28 10 Hover 1 | . . . . . 8 Flight 1 | . . . . . 6 Device 1 | . . . . . 6 Storage 13 | . 14 14 14 14 9 Protection 9 | . . 12 14 14 2 Energy Gun 1 | . 8 . . . . Ballistic Gun 12 | . 14 14 14 14 2 Ballistic Cannon 10 | . 5 14 14 12 1 Naked Turns . | . . . . . . Heaviest Build 27 | 10 14 17 17 19 27 Greatest Support 36 | 20 20 20 20 20 36 Greatest Overweight (x) 1 | . . . . . 1 Average Overweight (x) . | . . . . . . Largest Inventory Capacity 10 | . 6 6 6 6 10 Average Capacity 6 | . 6 6 6 6 7 Most Carried 6 | . 6 6 6 6 6 Average Carried 5 | . 5 5 6 6 4 Final Capacity 10 | 6 6 6 6 6 10 Final Carried 6 | 6 6 6 6 6 4 Class Distribution -------------------- 96% | Mutant 3% | Scavenger-Mutant Dominant Class ---------------- Mutant | -10/Materials Mutant | -10/Mines Mutant | -10/Exiles Mutant | -9/Mines Mutant | -8/Materials Resources | -11 -10 -10 -10 -9 -8 ----------- Run | Scr Mat Min Exi Min Mat Matter Collected 715 | 178 147 131 32 10 217 Remotely . | . . . . . . Salvage Created 443 | . 150 108 . . 185 Parts 29 | . 8 8 . . 13 Haulers Intercepted . | . . . . . . Recyclers Shooed . | . . . . . . Parts Field Recycled . | . . . . . . Retrieved Matter . | . . . . . . Parts Self-Destructed . | . . . . . . Prevented . | . . . . . . Kills | -11 -10 -10 -10 -9 -8 ------- Run | Scr Mat Min Exi Min Mat Combat Hostiles Destroyed 16 | . 4 5 . . 7 Melee 1 | . . . . . 1 Guns 9 | . 3 4 . . 2 Cannons 5 | . 1 1 . . 3 Classes Destroyed 4 | . 1 1 . . 2 Tunneler 1 | . . . . . 1 Swarmer 6 | . . 3 . . 3 Grunt 6 | . 4 2 . . . Sentry 4 | . . . . . 4 Best Kill Streak 4 | . 2 3 . . 4 Combat Bots Only 4 | . 2 3 . . 4 Max Kills in Single Turn 1 | . 1 1 . . 1 Gunslinging . | . . . . . . Exploded . | . . . . . . Melee 1 | . . . . . 1 Uniques/NPCs Destroyed . | . . . . . . Combat | -11 -10 -10 -10 -9 -8 -------- Run | Scr Mat Min Exi Min Mat Damage Taken 1956 | . 282 299 . . 1375 Core 492 | . 63 55 . . 374 Absorbed by Shields . | . . . . . . Core Remaining (%) 76 | 100 . . . 52 . Volleys Fired 60 | . 19 19 . 3 19 Largest 2 | . 2 2 . 1 2 Hottest 120 | . 60 55 . 100 120 Shots Fired 109 | . 37 38 . 3 31 Gun 63 | . 30 19 . . 14 Cannon 35 | . 7 19 . . 9 Launcher . | . . . . . . Special 11 | . . . . 3 8 Kinetic 85 | . 26 38 . . 21 Thermal 22 | . 11 . . 3 8 Explosive . | . . . . . . Electromagnetic 2 | . . . . . 2 Robot Hit Streak 14 | . 11 7 . . 14 Robot Miss Streak 4 | . 2 4 . . 3 Penetration Max . | . . . . . . Secondary Targets . | . . . . . . Shots Hit Robots 82 | . 27 19 . . 36 Core Hits 27 | . 9 7 . . 11 Critical Hits . | . . . . . . Critical Kills . | . . . . . . Critical Parts Destroyed . | . . . . . . Melee Attacks 23 | . . . . . 23 Impact 23 | . . . . . 23 Slashing . | . . . . . . Piercing . | . . . . . . Sneak Attacks 1 | . . . . . 1 Combat Hostiles . | . . . . . . Follow-up Attacks . | . . . . . . Damage Inflicted 1137 | . 289 249 . . 599 Guns 479 | . 218 161 . . 100 Cannons 195 | . 71 88 . . 36 Explosions . | . . . . . . Melee 295 | . . . . . 295 Ramming . | . . . . . . Kinetic 551 | . 177 249 . . 125 Thermal 280 | . 112 . . . 168 Explosive . | . . . . . . Electromagnetic 11 | . . . . . 11 Impact 295 | . . . . . 295 Slashing . | . . . . . . Piercing . | . . . . . . Highest Corruption . | . . . . . . Average Corruption . | . . . . . . Corruption Purged . | . . . . . . Overload Shots . | . . . . . . Overflow Damage 6 | . 4 . . . 2 Projectiles 4 | . 4 . . . . Explosions . | . . . . . . Melee 2 | . . . . . 2 Knockbacks 4 | . 2 1 . . 1 Impact 1 | . . . . . 1 Kinetic 3 | . 2 1 . . . Secondary . | . . . . . . Self-Inflicted Damage . | . . . . . . Shots . | . . . . . . Rammed . | . . . . . . Targets Rammed . | . . . . . . Kicked . | . . . . . . Crushed . | . . . . . . Highest Temperature 185 | . 54 78 . 122 185 Average Temperature 46 | . 17 37 . 61 73 Received Heat Transfer 645 | . 153 96 . . 396 Siege Activations . | . . . . . . Robots Corrupted . | . . . . . . Combat Hostiles . | . . . . . . Parts Fried 1 | . . . . . 1 Impact Corruptions 1 | . . . . . 1 Robots Melted . | . . . . . . Combat Hostiles . | . . . . . . Parts Melted . | . . . . . . Heat Transferred 600 | . 250 . . . 350 Parts Sabotaged . | . . . . . . Parts Stolen . | . . . . . . Parts Stripped . | . . . . . . Power Chain Reactions . | . . . . . . Missiles Intercepted . | . . . . . . Alert | -11 -10 -10 -10 -9 -8 ------- Run | Scr Mat Min Exi Min Mat Peak Influence 169 | . 90 169 . 9 136 Average Influence 57 | . 27 78 . 8 92 Maximum Alert Level . | . . . . . . Low Security (%) 100 | . 100 100 . 100 100 Level 1 . | . . . . . . Level 2 . | . . . . . . Level 3 . | . . . . . . Level 4 . | . . . . . . Level 5 . | . . . . . . High Security . | . . . . . . Max Security . | . . . . . . Squads Dispatched 4 | . . . . . 4 Investigation . | . . . . . . Extermination . | . . . . . . Reinforcement 1 | . . . . . 1 Assault . | . . . . . . Garrison 3 | . . . . . 3 Intercept . | . . . . . . Construction Impeded . | . . . . . . Haulers Reinforced . | . . . . . . Stealth | -11 -10 -10 -10 -9 -8 --------- Run | Scr Mat Min Exi Min Mat Distress Signals 3 | . . . . . 3 Communications Jammed 18 | . . . . . 18 Distress Signals 18 | . . . . . 18 Times Spotted 34 | . 10 5 . . 19 Peak Tracking Total 6 | . 3 3 . . 6 Tactical Retreats 7 | . 5 . . . 2 Traps | -11 -10 -10 -10 -9 -8 ------- Run | Scr Mat Min Exi Min Mat Traps Triggered . | . . . . . . Indirectly . | . . . . . . Trap Hack Attempts . | . . . . . . Triggered . | . . . . . . Disarmed . | . . . . . . Reprogrammed . | . . . . . . Reused . | . . . . . . Traps Extracted . | . . . . . . Installed . | . . . . . . Triggered . | . . . . . . Exploded 1 | . . . 1 . . Machines | -11 -10 -10 -10 -9 -8 ---------- Run | Scr Mat Min Exi Min Mat Machines Disabled 1 | . . . . . 1 Max in Single Turn 1 | . . . . . 1 Garrison Access 1 | . . . . . 1 Machines Sabotaged . | . . . . . . Garrisons Compromised . | . . . . . . Overloaded Fab Kills . | . . . . . . Fab Network Shutdowns . | . . . . . . Hacking | -11 -10 -10 -10 -9 -8 --------- Run | Scr Mat Min Exi Min Mat Machines Accessed 6 | . 1 . 2 1 2 Terminals 3 | . 1 . . 1 1 Fabricators . | . . . . . . Repair Stations . | . . . . . . Recycling Units . | . . . . . . Scanalyzers . | . . . . . . Garrison Access 1 | . . . . . 1 Total Hacks 13 | . 3 . 5 2 3 Successful 11 | . 2 . 5 2 2 Failed 2 | . 1 . . . 1 Catastrophic . | . . . . . . Database Lockouts . | . . . . . . Manual 5 | . 3 . 1 1 . Terminals 7 | . 3 . . 2 2 Fabricators . | . . . . . . Repair Stations . | . . . . . . Recycling Units . | . . . . . . Scanalyzers . | . . . . . . Garrison Access 1 | . . . . . 1 Terminal Hacks 9 | . 1 . 5 2 1 Record 4 | . . . 4 . . Level Access Points 1 | . . . . 1 . Locate Traps 2 | . 1 . . . 1 Zone Layout 1 | . . . . 1 . EX-Prototype ID Bank 1 | . . . 1 . . Fabricator Hacks . | . . . . . . Repair Station Hacks . | . . . . . . Recycling Unit Hacks . | . . . . . . Scanalyzer . | . . . . . . Garrison Access Hacks 1 | . . . . . 1 Seal Access 1 | . . . . . 1 Unauthorized Hacks 2 | . 2 . . . . Terminals 1 | . 1 . . . . Botnet 1 | . 1 . . . . Fabricators . | . . . . . . Repair Stations . | . . . . . . Recycling Units . | . . . . . . Scanalyzers . | . . . . . . Garrison Access . | . . . . . . Data Cores Recovered . | . . . . . . Used . | . . . . . . Hacking Detections 2 | . 1 . . . 1 Full Trace Events . | . . . . . . Feedback Events . | . . . . . . Feedback Blocked . | . . . . . . Robot Schematics Acquired . | . . . . . . Robots Built . | . . . . . . Matter . | . . . . . . Time . | . . . . . . Total Robot Build Rating . | . . . . . . Part Schematics Acquired . | . . . . . . Parts Built . | . . . . . . Matter . | . . . . . . Time . | . . . . . . Total Part Build Rating . | . . . . . . Parts Repaired . | . . . . . . Time . | . . . . . . Parts Recycled . | . . . . . . Recycled Matter . | . . . . . . Retrieved Matter . | . . . . . . Retrieved Components . | . . . . . . Parts Scanalyzed . | . . . . . . Part Schematics Acquired . | . . . . . . Parts Damaged . | . . . . . . Bothacking | -11 -10 -10 -10 -9 -8 ------------ Run | Scr Mat Min Exi Min Mat Used RIF Installer . | . . . . . . Robots Hacked . | . . . . . . Non-combat . | . . . . . . Combat . | . . . . . . Robot Hacks Applied . | . . . . . . Relay Couplers Released . | . . . . . . Robots Rewired . | . . . . . . Allies Hacked . | . . . . . . Hacks Repelled . | . . . . . . Allies | -11 -10 -10 -10 -9 -8 -------- Run | Scr Mat Min Exi Min Mat Total Allies 4 | . . 1 . 3 . Largest Group 3 | . . 1 1 3 3 Highest-Rated Group 40 | . . 31 31 40 40 Highest-Rated Ally 31 | . . 31 31 16 16 Total Orders . | . . . . . . Ally Attacks 9 | . . . . . 9 Total Damage 84 | . . . . . 84 Kills 1 | . . . . . 1 Allies Corrupted . | . . . . . . Allies Melted . | . . . . . . Intel | -11 -10 -10 -10 -9 -8 ------- Run | Scr Mat Min Exi Min Mat Robot Analysis Total . | . . . . . . Derelict Logs Recovered 3 | . . 2 . 1 . Drone Launches . | . . . . . . Drone Recoveries . | . . . . . . Exploration | -11 -10 -10 -10 -9 -8 ------------- Run | Scr Mat Min Exi Min Mat Turns Passed 1942 | . 287 467 594 266 328 Spaces Moved 1296 | 1 164 328 435 186 182 Core 2 | . . . . . 2 Treads . | . . . . . . Legs 1156 | 1 164 328 435 186 42 Wheels . | . . . . . . Hover 82 | . . . . . 82 Flight 56 | . . . . . 56 Fastest Speed 34 | 120 120 120 120 120 34 Average Speed 114 | 120 120 120 120 120 83 Slowest Speed 124 | 120 120 120 120 120 124 Overloaded Moves . | . . . . . . Propulsion Burnouts . | . . . . . . Robots Hopped . | . . . . . . Cave-ins Triggered . | . . . . . . Exploration Rate (%) 36 | 2 31 58 71 38 18 Regions Visited 5 Branch Regions 3 Pre-discovered Areas 3 | . . 2 1 . . Known Exits Taken 1 | . . . . 1 . Unknown Exits Taken 4 | 1 1 1 1 . . Scrap Searched 1 | . . . . 1 . Spaces Dug 3 | . . . . 3 . Terrain Destroyed 4 | . . . . 3 1 Melee . | . . . . . . Projectile 4 | . . . . 3 1 AOE . | . . . . . . Actions | -11 -10 -10 -10 -9 -8 --------- Run | Scr Mat Min Exi Min Mat Total 1583 | . 219 364 507 219 274 Wait 146 | . 18 11 71 27 19 Move 1291 | . 163 327 434 185 182 Hop . | . . . . . . Pick Up 15 | . 7 1 1 . 6 Fast Attach 14 | . 1 2 . . 11 Attach 9 | . 2 . . . 7 Detach 1 | . . . . . 1 Swap 7 | . 2 1 . 3 1 Drop 17 | . 7 3 1 1 5 Fire 60 | . 19 19 . 3 19 Melee 23 | . . . . . 23 Ram . | . . . . . . Kick . | . . . . . . Crush . | . . . . . . Escape Stasis . | . . . . . . Rewire . | . . . . . . Trap . | . . . . . . Miscellaneous . | . . . . . . Route ------- -11/Scrapyard -10/Materials -10/Mines (discovered 2 exits: [*Mat] / *Exi) -10/Exiles -9/Mines (discovered 2 exits: *Mat x2) -8/Materials History --------- Turn | Location | Event 1 | -11/Scrapyard | Discovered new exit (range 0) 1 | -11/Scrapyard | Entered Materials 282 | -10/Materials | Discovered new exit (range 6) 288 | -10/Materials | Entered Mines 312 | -10/Mines | Build established: Mutant 322 | -10/Mines | Learned location of Zion (-6) 459 | -10/Mines | Discovered new exit (range 7) 639 | -10/Mines | Received a Mining Laser from a helpful Derelict 746 | -10/Mines | Deemed a non-threat by the Exiles lab entrance 746 | -10/Mines | Discovered new exit (range 5) 755 | -10/Mines | Entered Exiles 755 | -10/Exiles | Accompanied by 1 ally 784 | -10/Exiles | Met 8R-AWN 805 | -10/Exiles | Met EX-HEX 839 | -10/Exiles | Met EX-BIN 854 | -10/Exiles | Met EX-DEC 1088 | -10/Exiles | Aligned with FarCom system 1089 | -10/Exiles | Given EX-Vault access code 1117 | -10/Exiles | Opened EX-Vault 1124 | -10/Exiles | Found Field Lobotomy Kit 1151 | -10/Exiles | Warned to stay clear of 0b10 Research branches 1167 | -10/Exiles | Exiles lab attacked by MAIN.C 1253 | -10/Exiles | Discovered new exit (range 14) 1349 | -10/Exiles | Left Exiles lab with Field Lobotomy Kit 1349 | -10/Exiles | Entered Mines 1352 | -9/Mines | Identified exit to Materials 1404 | -9/Mines | Assisted by bots powering up and referring to "LRC-V3" 1407 | -9/Mines | Learned Materials non-interactive machine intel 1420 | -9/Mines | Assembled infested the area 1615 | -9/Mines | Entered Materials 1615 | -8/Materials | Accompanied by 3 allies 1615 | -8/Materials | Evolved 4 slots: Propulsion x2, Utility x2 1616 | -8/Materials | Loaded intel: 46 non-interactive machine locations 1785 | -8/Materials | Lost 9 parts (1p3n1u4w) 1898 | -8/Materials | Core integrity fell below 50% 1943 | -8/Materials | Self-destructed Last Messages --------------- 01902_ U-05 Engineer builds a Wall. 01902_ G-47 Trooper knocked back. 01909_ Connecting with Terminal... >>Traps(Locate) Found 7 traps in 2 arrays: 6x Alarm Trap 1x Blade Trap Map updated. 01913_ Penetrated by Slug. 01913_ Airjet destroyed. 01920_ Slug penetrates Terminal. 01920_ Terminal disabled. 01921_ Airjet destroyed. 01923_ W-25 Informer distress signal jammed. 01927_ Slug penetrates Wall. 01928_ W-25 Informer distress signal jammed. 01931_ Slug penetrates Door. 01931_ W-25 Informer distress signal jammed. 01938_ Slug penetrates Wall. 01939_ W-25 Informer distress signal jammed. Map ----- +----------------------------------------------------+ | ????????????"""""????????????????????????????????? | | ??????#?? ??"""""????????????????????????????????? | | ??????# ? ???"""?????????????????????????????????? | | ??????? ???????????????????????????????????????? | | ??????? ???????????????????????????????????????? | | ??????? ???????????????????????????????????????? | | ??????? ???????????????????????????????????????? | | ??????? ???????????????????????????????????????? | | ???????# #???????????????????????????????????????? | | ???????# #???????????Y???????????????????????????? | | ???????# #???????????????????????????????????????? | | ???????# #???????????????????????????????????????? | | ?????### ###?????????????????????????????????????? | | ?????# [ ########?????????????"""??????????????? | | ###### #######???????"""??????????????? | | !|= #???????"""??????????????? | | ### ## #????????????????????????? | | ?# !=# ## #???????"""??????????????? | | ?#######/#### #???????"""??????????????? | | ?????# h g #???????"""??????????????? | | ?????# """ # g #????????????????????????? | | ?????# "R # ########?????????????????? | | ?????# """ + # "" #?????????????????? | | ?????# """ ##### # ""S #?????w???????????? | | ?????# #???# + "" #?????????????????? | | ?????########???# #@ #?????????????????? | | ????????????????#w # #????????????"""??? | | ????????????????#^^ ^ ^ # #????????????"""??? | | #???????????????# ^^ ########????????????"""??? | | #???????????????# #????????????????????????? | | #?????????????? #????????????????????????? | | #?????????????### #????????????????????????? | | #???????????????# #????????????????????????? | | #???????????????# #????????????????????????? | | #???????????????# #????????????????????????? | | #???????????????# #????????????????????????? | | #???????????????# #????????????????????????? | | #???????????????# #????????????????????????? | | #???????????????+ #????????????????????????? | | ????????????????? ???????????"""???????????? | | ???????????????????????????????????"""???????????? | | ???????????????????????????????????"""???????????? | | ?????????????????????????????????????????????????? | | ?????????????????????????????????????????????????? | | ?????????????????????????????????????????????????? | | ""???????"""""""?????????????????????????????????? | | ""???????"""""""?????????????????????????????????? | | ""???????"""""""?????????????????????????????????? | | ?????????"""""""?????????????????????????????????? | | ""???????"""""""?????????????????????????????????? | +----------------------------------------------------+ Best States ------------- Heat Dissipation 41 Energy Generation 14 Energy Capacity 250 Matter Stores 300 Matter Capacity 300 Sight Range 16 Terrain Scan Density 10 Jamming Range 8 Armor Coverage 150 Power Shielding 33 Evasion (%) 63 Item Schematics ----------------- None Robot Schematics ------------------ None Fabricated ------------ Nothing Alien Tech Used ----------------- None Achievements -------------- None Challenges ------------ None Game ------ Seed CoordinationImpulseInsulator Manual? 1 Play Time 00:16:07 Cumulative 267.5 hours Start 2020.01.29 @ 19:49:28 End 2020.01.29 @ 20:25:20 Sessions 2 Manual Loads 0 Difficulty Rogue Special Mode None Game No. 92 Rogue 29 Adventurer 33 Explorer 30 Win Type - Total 39 Types 23/5/4/2/2/1/2 Lore% 98 Gallery% 100 Achievement% 86 Wizard Run 0 Options --------- ASCII 0 Keyboard 0 Movement Numpad Keybinds 1 Fullscreen 0 Font 18/Terminus Map View 76x50 Tactical HUD 1 Map Filters NONE Filters NONE Steam 1 RUN: a22dd0f6-427f-4d8c-9522-ce9f2faeac42